fUST/lending_fUST_20250429
["ID","MTS","AMOUNT","RATE_DAILY","PERIOD"]
[359264131,1745877048370,-1193.08,0.00022191,2]
[359264132,1745877048380,-2003.36,0.00022191,2]
[359264133,1745877048390,-400.0,0.00022191,2]
[359264134,1745877048399,-1063.56,0.00022191,2]
[359264135,1745877048409,-533.79,0.00022191,2]
[359264136,1745877048419,-1522.43,0.00022191,2]
[359264137,1745877048429,-151.0,0.0002221,7]
[359264138,1745877048439,-13820.39845976,0.0002221,3]
[359264139,1745877048448,-151.0,0.00022228,7]
[359264140,1745877048458,-6213.95941621,0.00022228,2]
[359264141,1745877048467,-151.0,0.00022228,7]
[359264142,1745877048477,-1382.1051167,0.00022268,2]
[359264143,1745877048487,-151.0,0.00022433,7]
[359264144,1745877048497,-6213.95941621,0.00022434,2]
[359264145,1745877048507,-500.51931685,0.00022464,2]
[359264146,1745877048518,-200.0,0.00022465,2]
[359264147,1745877048528,-200.0,0.00022465,2]
[359264148,1745877048538,-200.0,0.00022465,2]
[359264149,1745877048548,-204.80993198,0.00022465,2]
[359264150,1745877048558,-400.0,0.00022465,2]
[359264151,1745877048568,-400.0,0.00022465,2]
[359264152,1745877048779,-417.49,0.00022465,2]
[359264153,1745877048799,-226.08875906,0.00022465,2]
[359264154,1745877048809,-200.0,0.00022465,2]
[359264155,1745877048819,-400.0,0.00022465,2]
[359264156,1745877048830,-400.0,0.00022465,2]
[359264157,1745877048839,-405.76,0.00022465,2]
[359264158,1745877048850,-413.99,0.00022465,2]
[359264159,1745877048860,-400.0,0.00022465,2]
[359264160,1745877048869,-400.0,0.00022465,2]
[359264161,1745877048879,-400.0,0.00022465,2]
[359264162,1745877048889,-400.0,0.00022465,2]
[359264163,1745877048898,-400.0,0.00022465,2]
[359264164,1745877048908,-400.0,0.00022465,2]
[359264165,1745877048918,-210.91112369,0.00022465,2]
[359264166,1745877048927,-400.0,0.00022465,2]
[359264167,1745877048937,-400.0,0.00022465,2]
[359264168,1745877048946,-400.0,0.00022465,2]
[359264169,1745877048956,-400.0,0.00022465,2]
[359264170,1745877048965,-200.0,0.00022465,2]
[359264171,1745877048975,-400.0,0.00022465,2]
[359264172,1745877048985,-400.0,0.00022465,2]
[359264173,1745877048995,-419.35,0.00022465,2]
[359264174,1745877049005,-151.0,0.00022465,7]
[359264175,1745877049015,-400.0,0.00022465,2]
[359264176,1745877049024,-400.0,0.00022465,2]
[359264177,1745877049034,-400.0,0.00022465,2]
[359264178,1745877049044,-400.0,0.00022465,2]
[359264179,1745877049054,-400.0,0.00022465,2]
[359264180,1745877049064,-400.0,0.00022465,2]
[359264181,1745877049078,-400.0,0.00022465,2]
[359264182,1745877049088,-151.0,0.00022465,7]
[359264183,1745877049098,-400.0,0.00022465,2]
[359264184,1745877049108,-400.0,0.00022465,2]
[359264185,1745877049118,-460.49,0.00022465,2]
[359264186,1745877049128,-400.0,0.00022465,2]
[359264187,1745877049137,-647.66,0.00022465,2]
[359264188,1745877049149,-400.0,0.00022465,2]
[359264189,1745877049159,-300.0,0.00022465,2]
[359264190,1745877049168,-1056.92,0.00022465,2]
[359264191,1745877049178,-151.0,0.00022465,7]
[359264192,1745877049187,-151.0,0.00022465,7]
[359264193,1745877049198,-400.0,0.00022465,2]
[359264194,1745877049208,-151.0,0.00022465,7]
[359264195,1745877049218,-151.0,0.00022465,7]
[359264196,1745877049228,-300.0,0.00022465,2]
[359264197,1745877049238,-400.0,0.00022465,2]
[359264198,1745877049249,-204.09968593,0.00022465,2]
[359264199,1745877049259,-400.0,0.00022465,2]
[359264200,1745877049270,-400.0,0.00022465,2]
[359264201,1745877049280,-435.96,0.00022465,2]
[359264202,1745877049290,-400.0,0.00022465,2]
[359264203,1745877049300,-400.0,0.00022465,2]
[359264204,1745877049309,-400.0,0.00022465,2]
[359264205,1745877049319,-627.32,0.00022465,2]
[359264206,1745877049329,-2404.59,0.00022465,2]
[359264207,1745877049339,-400.0,0.00022465,2]
[359264208,1745877049348,-400.0,0.00022465,2]
[359264209,1745877049358,-1232.39,0.00022465,2]
[359264210,1745877049367,-486.32,0.00022465,2]
[359264211,1745877049377,-400.0,0.00022465,2]
[359264212,1745877049387,-400.0,0.00022465,2]
[359264213,1745877049397,-400.0,0.00022465,2]
[359264214,1745877049408,-400.0,0.00022465,2]
[359264215,1745877049417,-200.0,0.00022465,2]
[359264216,1745877049427,-404.05270157,0.00022465,2]
[359264217,1745877049437,-400.0,0.00022465,2]
[359264218,1745877049447,-317.77894226,0.00022465,2]
[359264219,1745877049457,-400.0,0.00022465,2]
[359264220,1745877049467,-400.0,0.00022465,2]
[359264221,1745877049476,-400.0,0.00022465,2]
[359264222,1745877049486,-400.0,0.00022465,2]
[359264223,1745877049496,-400.0,0.00022465,2]
[359264224,1745877049506,-400.0,0.00022465,2]
[359264225,1745877049516,-400.0,0.00022465,2]
[359264226,1745877049526,-400.0,0.00022465,2]
[359264227,1745877049536,-1183.01,0.00022465,2]
[359264228,1745877049546,-204.62886213,0.00022465,2]
[359264229,1745877049556,-1464.44,0.00022465,2]
[359264230,1745877049566,-400.0,0.00022465,2]
[359264231,1745877049575,-165.180743,0.00022465,7]
[359264232,1745877049585,-400.0,0.00022465,2]
[359264233,1745877049595,-400.0,0.00022465,2]
[359264234,1745877049604,-400.0,0.00022465,2]
[359264235,1745877049614,-621.94,0.00022465,2]
[359264236,1745877049624,-519.1,0.00022465,2]
[359264237,1745877049634,-400.0,0.00022465,2]
[359264238,1745877049643,-505.76,0.00022465,2]
[359264239,1745877049653,-400.0,0.00022465,2]
[359264240,1745877049664,-400.0,0.00022465,2]
[359264241,1745877049673,-1086.1,0.00022465,2]
[359264242,1745877049683,-514.65,0.00022465,2]
[359264243,1745877049693,-151.0,0.00022465,7]
[359264244,1745877049704,-400.0,0.00022465,2]
[359264245,1745877049714,-400.0,0.00022465,2]
[359264246,1745877049724,-400.0,0.00022465,2]
[359264247,1745877049734,-168.880015,0.00022465,7]
[359264248,1745877049745,-400.0,0.00022465,2]
[359264249,1745877049754,-724.67,0.00022465,2]
[359264250,1745877049764,-400.0,0.00022465,2]
[359264251,1745877049774,-926.46,0.00022465,2]
[359264252,1745877049784,-2449.7,0.00022465,2]
[359264253,1745877049794,-400.0,0.00022465,2]
[359264254,1745877049804,-400.0,0.00022465,2]
[359264255,1745877049813,-400.0,0.00022465,2]
[359264256,1745877049823,-400.0,0.00022465,2]
[359264257,1745877049833,-151.0,0.00022465,7]
[359264258,1745877049843,-151.0,0.00022465,7]
[359264259,1745877049852,-400.0,0.00022465,2]
[359264260,1745877049862,-151.0,0.00022465,7]
[359264261,1745877049871,-625.36,0.00022465,2]
[359264262,1745877049881,-400.0,0.00022465,2]
[359264263,1745877049891,-400.0,0.00022465,2]
[359264264,1745877049901,-844.49,0.00022465,2]
[359264265,1745877049910,-400.0,0.00022465,2]
[359264266,1745877049920,-400.0,0.00022465,2]
[359264267,1745877049929,-400.0,0.00022465,2]
[359264268,1745877049939,-268.70464,0.00022465,7]
[359264269,1745877049948,-400.0,0.00022465,2]
[359264270,1745877049957,-400.0,0.00022465,2]
[359264271,1745877049967,-400.0,0.00022465,2]
[359264272,1745877049976,-400.0,0.00022465,2]
[359264273,1745877049985,-151.0,0.00022465,7]
[359264274,1745877049995,-151.0,0.00022465,7]
[359264275,1745877050004,-449.97,0.00022465,2]
[359264276,1745877050014,-400.0,0.00022465,2]
[359264277,1745877050023,-151.0,0.00022465,7]
[359264278,1745877050033,-520.39,0.00022465,2]
[359264279,1745877050042,-400.0,0.00022465,2]
[359264280,1745877050052,-400.0,0.00022465,2]
[359264281,1745877050062,-221.681448,0.00022465,7]
[359264282,1745877050075,-400.0,0.00022465,2]
[359264283,1745877050084,-400.0,0.00022465,2]
[359264284,1745877050094,-567.1,0.00022465,2]
[359264285,1745877050103,-400.0,0.00022465,2]
[359264286,1745877050113,-544.88,0.00022465,2]
[359264287,1745877050123,-554.99,0.00022465,2]
[359264288,1745877050134,-400.0,0.00022465,2]
[359264289,1745877050143,-475.92,0.00022465,2]
[359264290,1745877050154,-400.0,0.00022465,2]
[359264291,1745877050164,-400.0,0.00022465,2]
[359264292,1745877050176,-400.0,0.00022465,2]
[359264293,1745877050185,-672.36,0.00022465,2]
[359264294,1745877050195,-400.0,0.00022465,2]
[359264295,1745877050205,-400.0,0.00022465,2]
[359264296,1745877050215,-550.96,0.00022465,2]
[359264297,1745877050225,-400.0,0.00022465,2]
[359264298,1745877050234,-1081.67,0.00022465,2]
[359264299,1745877050245,-156.75546656,0.00022465,2]
[359264300,1745877050254,-400.0,0.00022465,2]
[359264301,1745877050264,-400.0,0.00022465,2]
[359264302,1745877050274,-400.0,0.00022465,2]
[359264303,1745877050283,-400.0,0.00022465,2]
[359264304,1745877050292,-858.62,0.00022465,2]
[359264305,1745877050303,-400.0,0.00022465,2]
[359264306,1745877050313,-400.0,0.00022465,2]
[359264307,1745877050324,-500.0,0.00022465,2]
[359264308,1745877050334,-400.0,0.00022465,2]
[359264309,1745877050345,-2615.87,0.00022465,2]
[359264310,1745877050356,-4263.27,0.00022465,2]
[359264311,1745877050366,-400.0,0.00022465,2]
[359264312,1745877050376,-400.0,0.00022465,2]
[359264313,1745877050386,-483.36,0.00022465,2]
[359264314,1745877050396,-4222.87,0.00022465,2]
[359264315,1745877050407,-681.58,0.00022465,2]
[359264316,1745877050419,-400.0,0.00022465,2]
[359264317,1745877050429,-504.3851446,0.00022465,2]
[359264318,1745877050438,-400.0,0.00022465,2]
[359264319,1745877050448,-740.86,0.00022465,2]
[359264320,1745877050457,-1645.93,0.00022465,2]
[359264321,1745877050467,-1950.21,0.00022465,2]
[359264322,1745877050476,-469.79,0.00022465,2]
[359264323,1745877050485,-531.12,0.00022465,2]
[359264324,1745877050494,-1033.3,0.00022465,2]
[359264325,1745877050503,-925.36,0.00022465,2]
[359264326,1745877050513,-745.63,0.00022465,2]
[359264327,1745877050523,-1637.14,0.00022465,2]
[359264328,1745877050532,-400.0,0.00022465,2]
[359264329,1745877050542,-713.76,0.00022465,2]
[359264330,1745877050551,-414.68,0.00022465,2]
[359264331,1745877050561,-411.75,0.00022465,2]
[359264332,1745877050570,-2550.27,0.00022465,2]
[359264333,1745877050580,-539.47,0.00022465,2]
[359264334,1745877050589,-400.0,0.00022465,2]
[359264335,1745877050598,-400.0,0.00022465,2]
[359264336,1745877050608,-616.88,0.00022465,2]
[359264337,1745877050617,-400.0,0.00022465,2]
[359264338,1745877050627,-409.13,0.00022465,2]
[359264339,1745877050637,-400.0,0.00022465,2]
[359264340,1745877050647,-400.0,0.00022465,2]
[359264341,1745877050657,-180.706871,0.00022465,2]
[359264342,1745877050666,-400.0,0.00022465,2]
[359264343,1745877050675,-581.81,0.00022465,2]
[359264344,1745877050684,-1591.33,0.00022465,2]
[359264345,1745877050694,-180.706871,0.00022465,2]
[359264346,1745877050703,-400.0,0.00022465,2]
[359264347,1745877050712,-413.12,0.00022465,2]
[359264348,1745877050722,-400.0,0.00022465,2]
[359264349,1745877050731,-400.0,0.00022465,2]
[359264350,1745877050741,-400.0,0.00022465,2]
[359264351,1745877050751,-800.62,0.00022465,2]
[359264352,1745877050760,-5831.2,0.00022465,2]
[359264353,1745877050770,-400.0,0.00022465,2]
[359264354,1745877050780,-400.0,0.00022465,2]
[359264355,1745877050790,-400.0,0.00022465,2]
[359264356,1745877050800,-400.0,0.00022465,2]
[359264357,1745877050809,-400.0,0.00022465,2]
[359264358,1745877050819,-400.0,0.00022465,2]
[359264359,1745877050831,-827.12,0.00022465,2]
[359264360,1745877050840,-2262.63,0.00022465,2]
[359264361,1745877050850,-10044.02,0.00022465,2]
[359264362,1745877050860,-589.19,0.00022465,2]
[359264363,1745877050871,-463.19,0.00022465,2]
[359264364,1745877050883,-151.0,0.00022465,2]
[359264365,1745877050895,-505.6439975,0.00022465,2]
[359264366,1745877050906,-500.0,0.00022465,2]
[359264367,1745877050917,-1854.38,0.00022465,2]
[359264368,1745877050927,-289.28992137,0.00022465,2]
[359264369,1745877051204,-129.92007863,0.00022465,2]
[359264370,1745877051215,-400.0,0.00022465,2]
[359264371,1745877051224,-400.0,0.00022465,2]
[359264372,1745877051234,-1882.63,0.00022465,2]
[359264373,1745877051243,-1317.73,0.00022465,2]
[359264374,1745877051252,-2647.32,0.00022465,2]
[359264375,1745877051262,-228.1682981,0.00022465,2]
[359264376,1745877051271,-400.0,0.00022465,2]
[359264377,1745877051281,-400.0,0.00022465,2]
[359264378,1745877051290,-452.45,0.00022465,2]
[359264379,1745877051300,-400.0,0.00022465,2]
[359264380,1745877051309,-493.22,0.00022465,2]
[359264381,1745877051319,-458.24,0.00022465,2]
[359264382,1745877051328,-400.0,0.00022465,2]
[359264383,1745877051338,-400.0,0.00022465,2]
[359264384,1745877051348,-522.3,0.00022465,2]
[359264385,1745877051357,-400.0,0.00022465,2]
[359264386,1745877051366,-457.99,0.00022465,2]
[359264387,1745877051375,-400.0,0.00022465,2]
[359264388,1745877051384,-400.0,0.00022465,2]
[359264389,1745877051393,-400.0,0.00022465,2]
[359264390,1745877051402,-400.0,0.00022465,2]
[359264391,1745877051411,-400.0,0.00022465,2]
[359264392,1745877051420,-726.99,0.00022465,2]
[359264393,1745877051430,-400.0,0.00022465,2]
[359264394,1745877051439,-457.92,0.00022465,2]
[359264395,1745877051448,-400.0,0.00022465,2]
[359264396,1745877051458,-531.0,0.00022465,2]
[359264397,1745877051467,-400.0,0.00022465,2]
[359264398,1745877051476,-400.0,0.00022465,2]
[359264399,1745877051486,-443.75,0.00022465,2]
[359264400,1745877051496,-2415.47,0.00022465,2]
[359264401,1745877051506,-400.0,0.00022465,2]
[359264402,1745877051516,-460.6,0.00022465,2]
[359264403,1745877051526,-400.0,0.00022465,2]
[359264404,1745877051536,-638.92,0.00022465,2]
[359264405,1745877051546,-794.96,0.00022465,2]
[359264406,1745877051555,-808.42,0.00022465,2]
[359264407,1745877051565,-400.0,0.00022465,2]
[359264408,1745877051576,-542.15,0.00022465,2]
[359264409,1745877051585,-400.0,0.00022465,2]
[359264410,1745877051595,-337.14,0.00022465,2]
[359264411,1745877051604,-500.0,0.00022465,2]
[359264412,1745877051614,-400.0,0.00022465,2]
[359264413,1745877051623,-4074.7,0.00022465,2]
[359264414,1745877051632,-454.97,0.00022465,2]
[359264415,1745877051642,-400.0,0.00022465,2]
[359264416,1745877051651,-400.0,0.00022465,2]
[359264417,1745877051661,-446.62,0.00022465,2]
[359264418,1745877051670,-400.0,0.00022465,2]
[359264419,1745877051679,-169.56303844,0.00022465,2]
[359264465,1745878232228,-300.0,0.00019528,2]
[359264467,1745878232238,-24900.0,0.00019529,2]
[359264469,1745878232248,-348.469693,0.00020103,2]
[359264471,1745878232258,-164.94915705,0.00020121,2]
[359264473,1745878232267,-164.94915704,0.00020169,2]
[359264475,1745878232277,-164.94915704,0.00020217,2]
[359264477,1745878232287,-164.94915704,0.00020265,2]
[359264479,1745878232297,-300.0,0.00020299,2]
[359264481,1745878232306,-986.0,0.000203,2]
[359264483,1745878232316,-500.0,0.000203,2]
[359264485,1745878232325,-500.0,0.000203,2]
[359264487,1745878232335,-500.0,0.000203,2]
[359264489,1745878232345,-500.0,0.000203,2]
[359264491,1745878232355,-500.0,0.000203,2]
[359264493,1745878232365,-500.0,0.000203,2]
[359264495,1745878232374,-25.63369221,0.000203,2]
[359264498,1745878232386,-474.36630779,0.000203,2]
[359264501,1745878232395,-500.0,0.000203,2]
[359264504,1745878232405,-230.01819002,0.000203,2]
[359264505,1745878232415,-50000.0,0.000203,2]
[359264507,1745878232425,-150.0,0.00020365,2]
[359264509,1745878232434,-250.0,0.00020392,2]
[359264510,1745878232443,-1996.3172822,0.00021058,2]
[359264511,1745878232452,-172.19461,0.00021187,2]
[359264512,1745878232462,-459.4576944,0.00021273,2]
[359264513,1745878232471,-300.38501393,0.00021628,2]
[359264514,1745878232480,-500.0,0.00021813,2]
[359264515,1745878232489,-500.0,0.00021813,2]
[359264516,1745878232503,-500.0,0.00021813,2]
[359264517,1745878232516,-500.0,0.00021813,2]
[359264518,1745878232528,-500.0,0.00021813,2]
[359264519,1745878232541,-500.0,0.00021813,2]
[359264520,1745878232553,-500.0,0.00021813,2]
[359264521,1745878232564,-500.0,0.00021813,2]
[359264522,1745878232575,-500.0,0.00021813,2]
[359264523,1745878232587,-500.0,0.00021813,2]
[359264524,1745878232598,-326.71507914,0.00021813,2]
[359264525,1745878232610,-500.0,0.00021813,2]
[359264526,1745878232621,-500.0,0.00021813,2]
[359264527,1745878232633,-500.0,0.00021813,2]
[359264528,1745878232644,-500.0,0.00021813,2]
[359264529,1745878232655,-500.0,0.00021813,2]
[359264530,1745878232668,-475.43635254,0.00021813,2]
[359264531,1745878232680,-500.0,0.00021813,2]
[359264532,1745878232692,-500.0,0.00021813,2]
[359264533,1745878232703,-500.0,0.00021813,2]
[359264534,1745878232715,-500.0,0.00021813,2]
[359264535,1745878232727,-500.0,0.00021813,2]
[359264536,1745878232739,-500.0,0.00021813,2]
[359264537,1745878232751,-500.0,0.00021813,2]
[359264538,1745878232762,-500.0,0.00021813,2]
[359264539,1745878232773,-500.0,0.00021813,2]
[359264540,1745878232784,-193.8069984,0.00021813,2]
[359264541,1745878232795,-500.0,0.00021813,2]
[359264542,1745878232807,-500.0,0.00021813,2]
[359264543,1745878232818,-500.0,0.00021813,2]
[359264544,1745878232828,-500.0,0.00021813,2]
[359264545,1745878232839,-500.0,0.00021813,2]
[359264546,1745878232851,-500.0,0.00021813,2]
[359264547,1745878232863,-500.0,0.00021813,2]
[359264548,1745878232875,-500.0,0.00021813,2]
[359264549,1745878232898,-500.0,0.00021813,2]
[359264550,1745878232913,-500.0,0.00021813,2]
[359264551,1745878232924,-500.0,0.00021813,2]
[359264552,1745878232935,-500.0,0.00021813,2]
[359264553,1745878232946,-500.0,0.00021813,2]
[359264554,1745878232958,-500.0,0.00021813,2]
[359264555,1745878232970,-500.0,0.00021813,2]
[359264556,1745878232981,-500.0,0.00021813,2]
[359264557,1745878232994,-500.0,0.00021813,2]
[359264558,1745878233006,-500.0,0.00021813,2]
[359264559,1745878233020,-500.0,0.00021813,2]
[359264560,1745878233032,-500.0,0.00021813,2]
[359264561,1745878233046,-500.0,0.00021813,2]
[359264562,1745878233059,-500.0,0.00021813,2]
[359264563,1745878233071,-500.0,0.00021813,2]
[359264564,1745878233085,-500.0,0.00021813,2]
[359264565,1745878233098,-500.0,0.00021813,2]
[359264566,1745878233112,-500.0,0.00021813,2]
[359264567,1745878233126,-500.0,0.00021813,2]
[359264568,1745878233139,-500.0,0.00021813,2]
[359264569,1745878233151,-500.0,0.00021813,2]
[359264570,1745878233163,-500.0,0.00021813,2]
[359264571,1745878233174,-500.0,0.00021813,2]
[359264572,1745878233184,-500.0,0.00021813,2]
[359264573,1745878233195,-500.0,0.00021813,2]
[359264574,1745878233205,-500.0,0.00021813,2]
[359264575,1745878233216,-500.0,0.00021813,2]
[359264576,1745878233227,-500.0,0.00021813,2]
[359264577,1745878233239,-500.0,0.00021813,2]
[359264578,1745878233253,-500.0,0.00021813,2]
[359264579,1745878233265,-500.0,0.00021813,2]
[359264580,1745878233277,-500.0,0.00021813,2]
[359264581,1745878233288,-500.0,0.00021813,2]
[359264582,1745878233299,-500.0,0.00021813,2]
[359264583,1745878233309,-500.0,0.00021813,2]
[359264584,1745878233321,-500.0,0.00021813,2]
[359264585,1745878233332,-500.0,0.00021813,2]
[359264586,1745878233344,-500.0,0.00021813,2]
[359264587,1745878233358,-500.0,0.00021813,2]
[359264588,1745878233370,-500.0,0.00021813,2]
[359264589,1745878233381,-500.0,0.00021813,2]
[359264590,1745878233392,-500.0,0.00021813,2]
[359264591,1745878233402,-500.0,0.00021813,2]
[359264592,1745878233412,-500.0,0.00021813,2]
[359264593,1745878233423,-500.0,0.00021813,2]
[359264594,1745878233434,-480.70890364,0.00021813,2]
[359264595,1745878233445,-500.0,0.00021813,2]
[359264596,1745878233456,-500.0,0.00021813,2]
[359264597,1745878233467,-500.0,0.00021813,2]
[359264598,1745878233479,-500.0,0.00021813,2]
[359264599,1745878233490,-500.0,0.00021813,2]
[359264600,1745878233507,-500.0,0.00021813,2]
[359264601,1745878233518,-500.0,0.00021813,2]
[359264602,1745878233530,-500.0,0.00021813,2]
[359264603,1745878233541,-379.17618056,0.00021813,2]
[359264604,1745878233553,-500.0,0.00021813,2]
[359264605,1745878233565,-56.98082481,0.00021813,2]
[359264606,1745878233581,-443.01917519,0.00021813,2]
[359264607,1745878233596,-44.29437569,0.00021813,2]
[359264608,1745878233611,-455.70562431,0.00021813,2]
[359264609,1745878233622,-500.0,0.00021813,2]
[359264610,1745878233634,-500.0,0.00021813,2]
[359264611,1745878233645,-500.0,0.00021813,2]
[359264612,1745878233657,-500.0,0.00021813,2]
[359264613,1745878233668,-500.0,0.00021813,2]
[359264614,1745878233680,-500.0,0.00021813,2]
[359264615,1745878233691,-8283.31874612,0.00021817,2]
[359264616,1745878233703,-12586.92143865,0.000219,3]
[359264617,1745878233714,-160.0,0.000219,3]
[359264618,1745878233725,-840.59878455,0.000219,3]
[359264619,1745878233736,-160.0,0.000219,3]
[359264620,1745878233746,-160.0,0.000219,3]
[359264621,1745878233757,-277.4743984,0.00021916,2]
[359264622,1745878233769,-225.43941608,0.00021916,2]
[359264623,1745878233780,-500.0,0.00021916,2]
[359264624,1745878233791,-292.88531383,0.00021916,2]
[359264625,1745878233801,-500.0,0.00021916,2]
[359264626,1745878233812,-500.0,0.00021916,2]
[359264627,1745878233823,-157.80759125,0.00021916,2]
[359264628,1745878233834,-500.0,0.00021917,2]
[359264629,1745878233845,-500.0,0.00021917,2]
[359264630,1745878233856,-500.0,0.00021917,2]
[359264631,1745878233867,-500.0,0.00021917,2]
[359264632,1745878233879,-400.0,0.00021917,2]
[359264633,1745878233894,-300.0,0.00021917,2]
[359264634,1745878233907,-400.0,0.00021917,2]
[359264635,1745878233919,-425.53,0.00021917,2]
[359264636,1745878233931,-400.0,0.00021917,2]
[359264637,1745878233944,-400.0,0.00021917,2]
[359264638,1745878233956,-400.0,0.00021917,2]
[359264639,1745878233967,-500.0,0.00021917,2]
[359264640,1745878233978,-504.44379717,0.00021917,2]
[359264641,1745878233990,-400.0,0.00021917,2]
[359264642,1745878234002,-400.0,0.00021917,2]
[359264643,1745878234013,-400.0,0.00021917,2]
[359264644,1745878234025,-400.0,0.00021917,2]
[359264645,1745878234037,-394.2786326,0.00021917,2]
[359264646,1745878234049,-400.0,0.00021917,2]
[359264647,1745878234060,-610.87,0.00021917,2]
[359264648,1745878234071,-400.0,0.00021917,2]
[359264649,1745878234082,-400.0,0.00021917,2]
[359264650,1745878234095,-200.0,0.00021917,2]
[359264651,1745878234106,-2164.33,0.00021917,2]
[359264652,1745878234118,-400.0,0.00021917,2]
[359264653,1745878234130,-613.85,0.00021917,2]
[359264654,1745878234141,-400.0,0.00021917,2]
[359264655,1745878234152,-500.0,0.00021917,2]
[359264656,1745878234163,-400.0,0.00021917,2]
[359264657,1745878234174,-400.0,0.00021917,2]
[359264658,1745878234185,-805.6,0.00021917,2]
[359264659,1745878234196,-429.62,0.00021917,2]
[359264660,1745878234207,-400.0,0.00021917,2]
[359264661,1745878234218,-400.0,0.00021917,2]
[359264662,1745878234229,-400.0,0.00021917,2]
[359264663,1745878234240,-400.0,0.00021917,2]
[359264664,1745878234251,-400.0,0.00021917,2]
[359264665,1745878234262,-257.02890223,0.00021917,2]
[359264666,1745878234273,-500.0,0.00021917,2]
[359264667,1745878234284,-500.0,0.00021917,2]
[359264668,1745878234295,-400.0,0.00021917,2]
[359264669,1745878234306,-400.0,0.00021917,2]
[359264670,1745878234317,-400.0,0.00021917,2]
[359264671,1745878234328,-500.0,0.00021917,2]
[359264672,1745878234339,-500.0,0.00021917,2]
[359264673,1745878234350,-400.0,0.00021917,2]
[359264674,1745878234361,-400.0,0.00021917,2]
[359264675,1745878234373,-1379.74,0.00021917,2]
[359264676,1745878234384,-400.0,0.00021917,2]
[359264677,1745878234395,-615.58,0.00021917,2]
[359264678,1745878234406,-400.0,0.00021917,2]
[359264679,1745878234417,-313.4808757,0.00021917,2]
[359264680,1745878234429,-1078.34,0.00021917,2]
[359264681,1745878234439,-654.98,0.00021917,2]
[359264682,1745878234450,-400.0,0.00021917,2]
[359264683,1745878234461,-515.05,0.00021917,2]
[359264684,1745878234472,-400.0,0.00021917,2]
[359264685,1745878234482,-400.0,0.00021917,2]
[359264686,1745878234493,-400.0,0.00021917,2]
[359264687,1745878234503,-400.0,0.00021917,2]
[359264688,1745878234514,-1035.13,0.00021917,2]
[359264689,1745878234524,-506.39,0.00021917,2]
[359264690,1745878234535,-582.21,0.00021917,2]
[359264691,1745878234545,-78.09738841,0.00021917,2]
[359264697,1745878238223,-2797.5823326,0.000211,3]
[359264698,1745878238236,-2367.88707537,0.000211,3]
[359264699,1745878238247,-7364.38406678,0.000211,3]
[359264700,1745878238256,-7871.52909101,0.00021555,3]
[359264701,1745878238267,-4658.32438363,0.00021555,3]
[359264702,1745878238276,-268.43840793,0.00021917,2]
[359264703,1745878238285,-520.88,0.00021917,2]